bitfinex/quotes_BTCUSD_20260215
["timestamp","ask_amount","ask_price","bid_price","bid_amount"]
[1771128592268,0.07111874,70305.0,70300.0,0.08]
[1771128592492,0.55532161,70308.0,70295.0,0.34068]
[1771128592774,0.0237977,70305.0,70292.0,0.00037492]
[1771128593014,0.00012,70310.0,70292.0,0.00037492]
[1771128593380,0.00012,70310.0,70303.0,0.07112072]
[1771128593787,0.00012,70310.0,70302.0,0.07112167]
[1771128594116,0.00012,70310.0,70305.0,0.07111799]
[1771128594333,0.00012,70310.0,70300.0,0.3348161]
[1771128594755,0.00012,70310.0,70300.0,0.26542278]
[1771128594966,0.07111486,70309.0,70302.0,0.07112171]
[1771128595134,0.00012,70310.0,70300.0,0.34072]
[1771128595542,0.07111874,70305.0,70298.0,0.07112562]
[1771128595760,0.07112042,70304.0,70298.0,0.34072]
[1771128595966,0.07112458,70300.0,70293.0,4.5e-05]
[1771128596140,0.07112196,70302.0,70294.0,0.34072]
[1771128596321,0.07112421,70300.0,70294.0,0.34072]
[1771128596524,0.07112308,70301.0,70293.0,4.5e-05]
[1771128596730,0.07112308,70301.0,70294.0,0.34072]
[1771128597335,0.07112398,70300.0,70294.0,0.34072]
[1771128597537,0.07112293,70301.0,70294.0,0.07112981]
[1771128597734,0.07112389,70300.0,70293.0,4.5e-05]
[1771128597932,0.07112377,70300.0,70293.0,0.41189514]
[1771128598120,0.2844609,70309.0,70293.0,4.5e-05]
[1771128598121,0.07111566,70308.0,70293.0,4.5e-05]
[1771128598322,0.07112547,70299.0,70294.0,0.34072]
[1771128598762,0.07112547,70299.0,70293.0,4.5e-05]
[1771128598962,0.07112607,70298.0,70293.0,4.5e-05]
[1771128599364,0.07112815,70296.0,70293.0,4.5e-05]
[1771128599572,0.07112607,70298.0,70293.0,4.5e-05]
[1771128599771,0.07112607,70298.0,70290.0,0.34072]
[1771128599947,0.07112883,70295.0,70284.0,0.0002]
[1771128600152,0.07112883,70295.0,70286.0,0.0711372]
[1771128600153,0.07113067,70294.0,70286.0,0.0711372]
[1771128600353,0.07126075,70295.0,70287.0,0.34072]
[1771128600550,0.55544161,70300.0,70287.0,0.34072]
[1771128600551,0.00012,70300.0,70294.0,0.07112958]
[1771128600808,0.00012,70310.0,70287.0,0.55520268]
[1771128600988,0.0237977,70304.0,70290.0,0.00012]
[1771128601206,0.00012,70307.0,70290.0,0.00012]
[1771128601207,0.28448798,70302.0,70290.0,0.34084]
[1771128601488,0.00012,70307.0,70284.0,0.0002]
[1771128601489,0.07113211,70292.0,70284.0,0.0002]
[1771128601690,0.00012,70306.0,70286.0,0.02423658]
[1771128601995,0.07136394,70310.0,70300.0,0.07112354]
[1771128602200,0.00025004,70310.0,70305.0,0.07111785]
[1771128602394,0.07111619,70308.0,70297.0,0.02423658]
[1771128602555,0.00025004,70310.0,70303.0,0.34076]
[1771128602761,0.00025004,70310.0,70309.0,0.07111465]
[1771128603858,0.00025004,70310.0,70308.0,0.07111543]
[1771128604286,0.11358108,70356.0,70303.0,0.34076]
[1771128604483,0.00045,70385.0,70367.0,0.07135808]
[1771128604693,0.02437956,70384.0,70383.0,0.07103988]
[1771128604894,0.02437956,70384.0,70370.0,0.3348161]
[1771128604895,0.58572838,70396.0,70382.0,0.07104039]
[1771128605095,0.56437874,70396.0,70380.0,0.405978]
[1771128605301,0.5430291,70396.0,70380.0,0.00012]
[1771128605511,1.08448146,70406.0,70381.0,0.13788445]
[1771128605512,0.0237977,70401.0,70381.0,0.13788445]
[1771128605716,0.07102112,70402.0,70391.0,0.07103095]
[1771128605956,0.74372146,70406.0,70388.0,0.11030756]
[1771128605957,0.57716252,70394.0,70388.0,0.11030756]
[1771128606131,0.28411915,70393.0,70380.0,0.00012]
[1771128606475,0.47002045,70392.0,70380.0,0.00012]
[1771128606786,0.07103217,70391.0,70382.0,0.07104053]
[1771128606941,0.07103217,70391.0,70380.0,0.00012]
[1771128606942,0.47015034,70392.0,70381.0,0.07104092]
[1771128607143,0.47015034,70392.0,70382.0,0.07104089]
[1771128607362,0.47015034,70392.0,70383.0,0.0710396]
[1771128607561,0.54118126,70392.0,70383.0,0.0710396]
[1771128607770,0.00012,70390.0,70370.0,0.3348161]
[1771128608149,0.55532161,70412.0,70380.0,0.3349361]
[1771128608336,0.57924927,70412.0,70381.0,0.55520268]
[1771128608455,0.84079133,70428.0,70422.0,0.07100053]
[1771128608456,0.23171332,70423.0,70422.0,0.07100053]
[1771128608662,0.09104,70428.0,70420.0,0.07100158]
[1771128608866,0.55544161,70433.0,70420.0,0.00012996]
[1771128609164,0.55544161,70433.0,70420.0,0.33494606]
[1771128609165,0.00012,70433.0,70420.0,0.33494606]
[1771128609719,0.00012,70433.0,70426.0,0.07099552]
[1771128609923,0.00012,70433.0,70422.0,0.07099987]
[1771128610122,0.00012,70433.0,70420.0,0.33494606]
[1771128610421,0.00012,70433.0,70428.0,0.07099439]
[1771128610651,1e-08,70437.0,70427.0,0.3348161]
[1771128610855,1e-08,70437.0,70421.0,0.55520268]
[1771128611072,1e-08,70437.0,70420.0,0.33494606]
[1771128611073,1e-08,70437.0,70420.0,0.00012996]
[1771128611486,0.01096336,70446.0,70427.0,0.3348161]
[1771128611638,0.005,70460.0,70438.0,0.55520268]
[1771128611870,0.005,70460.0,70443.0,0.28391749]
[1771128612062,0.005,70460.0,70442.0,0.55520268]
[1771128612280,5e-05,70458.0,70440.0,0.3348161]
[1771128612447,5e-05,70458.0,70437.0,0.34052]
[1771128612448,0.005,70460.0,70448.0,0.3348161]
[1771128612655,0.005,70460.0,70445.0,0.55520268]
[1771128612656,0.0001666,70458.0,70452.0,0.07096973]
[1771128613069,0.0560069,70480.0,70440.0,0.02290082]
[1771128613257,0.05613683,70480.0,70461.0,0.59353071]
[1771128613522,0.58492748,70479.0,70440.0,0.3348161]
[1771128613642,0.58492748,70479.0,70449.0,0.091]
[1771128613846,0.05613683,70480.0,70449.0,0.091]
[1771128614049,0.00034,70500.0,70470.0,0.3348161]
[1771128614297,0.00034,70500.0,70470.0,0.33494603]
[1771128614521,0.00034,70500.0,70470.0,0.00012993]
[1771128614648,0.0709413,70481.0,70470.0,0.00012993]
[1771128614847,0.3351561,70500.0,70442.0,0.59353071]
[1771128614848,0.02265193,70485.0,70442.0,0.59353071]
[1771128615049,0.02265193,70485.0,70446.0,0.59353071]
[1771128615050,0.3348161,70480.0,70446.0,0.59353071]
[1771128615295,0.02265193,70482.0,70450.0,0.3348161]
[1771128615508,0.60757941,70482.0,70460.0,0.3348161]
[1771128615711,0.60757941,70482.0,70460.0,0.40577739]
[1771128616019,0.60757941,70482.0,70460.0,0.3348161]
[1771128616234,0.3348161,70480.0,70430.0,0.07099247]
[1771128616517,0.58492748,70476.0,70434.0,0.07098761]
[1771128616717,0.07097312,70450.0,70430.0,0.3348161]
[1771128616948,0.65589476,70456.0,70420.0,0.3348161]
[1771128617095,0.58492748,70443.0,70420.0,0.4058185]
[1771128617312,0.07098676,70436.0,70420.0,0.4058182]
[1771128617549,0.58492748,70443.0,70420.0,0.3348161]
[1771128617750,0.07098753,70435.0,70424.0,0.07099818]
[1771128617932,0.58492748,70442.0,70410.0,0.3349361]
[1771128618224,0.00012,70420.0,70418.0,0.07100432]
[1771128618537,0.58492748,70438.0,70418.0,0.07100432]
[1771128618737,0.07099107,70432.0,70420.0,0.07100207]
[1771128618943,0.07098556,70437.0,70410.0,0.00012]
[1771128619189,0.07098892,70434.0,70411.0,0.59353071]
[1771128619360,0.07098972,70433.0,70421.0,0.07100068]
[1771128619562,1.20915691,70446.0,70420.0,0.3348161]
[1771128619563,0.92524748,70446.0,70420.0,0.3348161]
[1771128619769,0.00049998,70431.0,70420.0,0.33524933]
[1771128620138,0.00049998,70431.0,70420.0,0.00043323]
[1771128620268,0.07099247,70430.0,70420.0,0.00043323]
[1771128620466,0.07099351,70429.0,70420.0,0.00043323]
[1771128620663,0.07099267,70430.0,70420.0,0.00043323]
[1771128620871,0.58492748,70433.0,70420.0,0.00043323]
[1771128621089,0.3348161,70450.0,70420.0,0.00043323]
[1771128621090,0.07099396,70429.0,70420.0,0.00043323]
[1771128621291,0.07098554,70437.0,70420.0,0.00043323]
[1771128621466,0.6559139,70437.0,70420.0,0.00043323]
[1771128621672,0.07099986,70423.0,70413.0,0.07100959]
[1771128621893,0.02265193,70438.0,70410.0,0.40594773]
[1771128621894,0.58492748,70427.0,70410.0,0.00012]
[1771128622095,0.58492748,70427.0,70410.0,0.3349361]
[1771128622294,0.07099961,70423.0,70410.0,0.3349361]
[1771128622538,0.07112945,70423.0,70413.0,0.0710094]
[1771128622708,0.00012984,70423.0,70411.0,0.07101163]
[1771128622888,0.07100101,70422.0,70412.0,0.07101061]
[1771128623089,0.00012984,70423.0,70412.0,0.07101061]
[1771128623290,9.84e-06,70423.0,70411.0,0.07101163]
[1771128623515,9.84e-06,70423.0,70410.0,0.3349361]
[1771128623831,0.28400281,70422.0,70410.0,0.00012]
[1771128624045,0.07100689,70416.0,70400.0,0.3349361]
[1771128624246,0.07100961,70413.0,70400.0,0.3349361]
[1771128624458,0.6559311,70419.0,70400.0,0.3349361]
[1771128624601,0.07100555,70418.0,70406.0,0.07101652]
[1771128624803,0.07100558,70417.0,70406.0,0.07101652]
[1771128625408,0.58492748,70419.0,70400.0,0.3349361]
[1771128625627,0.0710079,70415.0,70404.0,0.07101794]
[1771128625834,0.28402169,70418.0,70402.0,0.07101997]
[1771128626033,0.65593205,70419.0,70401.0,0.07102171]
[1771128626307,0.07101167,70411.0,70400.0,0.00012]
[1771128626460,0.58492748,70419.0,70400.0,0.07114268]
[1771128626641,0.00012,70420.0,70400.0,0.07114268]
[1771128626642,0.07101422,70409.0,70400.0,0.00012]
[1771128626842,0.07101467,70408.0,70400.0,0.00012]
[1771128627045,0.58492748,70419.0,70400.0,0.00012]
[1771128627342,0.58492748,70413.0,70400.0,0.3349361]
[1771128627532,0.07101558,70408.0,70400.0,0.3349361]
[1771128627738,0.60769941,70420.0,70400.0,0.3349361]
[1771128627990,0.07101267,70410.0,70400.0,0.40595855]
[1771128628186,0.07100439,70419.0,70409.0,0.07101278]
[1771128628365,0.00040984,70423.0,70422.0,0.07100053]
[1771128628558,0.00040984,70423.0,70419.0,0.07100319]
[1771128628742,0.00040984,70423.0,70410.0,0.00012]
[1771128629093,0.00040984,70423.0,70411.0,0.07101163]
[1771128629312,0.07140952,70423.0,70414.0,0.07100837]
[1771128629472,0.00040984,70423.0,70410.0,0.00012]
[1771128629678,0.07100392,70419.0,70410.0,0.00012]
[1771128629843,0.07100457,70418.0,70410.0,0.00012]
[1771128630044,0.07100651,70417.0,70410.0,0.00012]
[1771128630283,0.00040984,70423.0,70410.0,0.00012]
[1771128630462,0.00040984,70423.0,70413.0,0.3348161]
[1771128630679,0.07100059,70422.0,70414.0,0.13571623]
[1771128630890,0.00040984,70423.0,70419.0,0.07100285]
[1771128631115,0.00040984,70423.0,70419.0,0.07100352]
[1771128631315,0.58492748,70433.0,70413.0,0.61885052]
[1771128631517,0.58492748,70433.0,70420.0,0.3348161]
[1771128631843,0.07099931,70424.0,70413.0,0.07113761]
[1771128632133,0.21216,70435.0,70422.0,0.07100045]
[1771128632286,0.07139222,70431.0,70423.0,0.136011]
[1771128632475,0.07099247,70430.0,70424.0,0.136011]
[1771128632726,0.07099386,70429.0,70421.0,0.07100064]
[1771128632929,0.0004,70431.0,70422.0,0.13629751]
[1771128633207,1.14455497,70451.0,70420.0,0.40581766]
[1771128633208,0.0004,70438.0,70423.0,0.13629751]
[1771128633371,0.58492748,70436.0,70419.0,0.16546134]
[1771128633579,0.070998,70425.0,70420.0,0.3348161]
[1771128633789,0.86889888,70430.0,70420.0,0.3348161]
[1771128633992,0.07099769,70425.0,70420.0,0.3348161]
[1771128634210,0.58492748,70431.0,70419.0,0.20197478]
[1771128634424,0.58492748,70429.0,70419.0,0.20197478]
[1771128634623,0.07099536,70428.0,70420.0,0.3348161]
[1771128634827,0.07099536,70428.0,70420.0,0.40581778]
[1771128635027,0.09363835,70437.0,70422.0,0.07099996]
[1771128635275,0.07099548,70428.0,70419.0,0.27297755]
[1771128635687,0.07099554,70427.0,70419.0,0.27297755]
[1771128635957,0.07099554,70427.0,70419.0,0.20197478]
[1771128636161,0.0709965,70426.0,70419.0,0.20197478]
[1771128636361,0.58492748,70429.0,70406.0,0.0002]
[1771128636590,0.3402,70431.0,70411.0,0.28404622]
[1771128636591,0.00012,70420.0,70411.0,0.28404622]
[1771128636758,0.07099733,70426.0,70416.0,0.07100559]
[1771128636987,0.07099662,70426.0,70416.0,0.07100569]
[1771128637192,0.07099662,70426.0,70417.0,0.07100557]
[1771128637440,0.07099796,70425.0,70415.0,0.07100666]
[1771128637815,0.07099984,70423.0,70414.0,0.07100797]
[1771128638021,0.0004,70433.0,70411.0,0.59353071]
[1771128638219,0.07100058,70422.0,70414.0,0.07100846]
[1771128638383,0.0004,70433.0,70410.0,0.00012]
[1771128638594,0.07100555,70418.0,70410.0,0.07113263]
[1771128638808,0.58492748,70423.0,70410.0,0.07113163]
[1771128639009,0.07100211,70421.0,70412.0,0.07100977]
[1771128639225,0.07099883,70424.0,70410.0,0.33376541]
[1771128639434,0.07100138,70422.0,70413.0,0.07100877]
[1771128639651,0.07100184,70421.0,70413.0,0.07100877]
[1771128639868,0.07100138,70422.0,70412.0,0.07101]
[1771128639869,0.07100266,70420.0,70412.0,0.07101]
[1771128640497,0.07100138,70422.0,70413.0,0.07100947]
[1771128640745,0.0710053,70418.0,70410.0,0.07113214]
[1771128640936,0.07100157,70421.0,70410.0,0.00012]
[1771128641152,0.00012,70420.0,70400.0,0.00012]
[1771128641364,0.59399103,70418.0,70400.0,0.00012]
[1771128641566,0.07102171,70401.0,70400.0,1e-08]
[1771128641787,0.59411103,70410.0,70391.0,0.0710318]
[1771128641993,0.07102163,70402.0,70392.0,0.07102998]
[1771128642187,0.59411103,70410.0,70393.0,0.0710288]
[1771128642188,0.07101364,70409.0,70393.0,0.0710288]
[1771128642610,0.59411103,70410.0,70392.0,0.07103068]
[1771128643038,0.59411103,70410.0,70390.0,0.33376541]
[1771128643290,0.07102099,70402.0,70392.0,0.07103058]
[1771128643473,0.5492959,70407.0,70390.0,0.40479733]
[1771128643681,0.00012,70410.0,70390.0,0.33376541]
[1771128643682,0.07102382,70399.0,70390.0,0.33376541]
[1771128643882,0.5492959,70406.0,70391.0,0.07103092]
[1771128644091,0.07102409,70399.0,70390.0,0.00012]
[1771128644264,0.07102331,70400.0,70390.0,0.00012]
[1771128644461,0.07102669,70397.0,70390.0,0.00012]
[1771128644663,0.5492959,70408.0,70392.0,0.0002]
[1771128644846,0.07102978,70393.0,70392.0,0.0002]
[1771128645861,0.5492959,70396.0,70384.0,0.0002]
[1771128646062,0.07103701,70386.0,70384.0,0.00032989]
[1771128646292,0.5492959,70393.0,70384.0,0.00032989]
[1771128646465,0.07103725,70386.0,70384.0,0.00032989]
[1771128646784,0.83341909,70393.0,70384.0,0.00032989]
[1771128646989,0.07103719,70386.0,70380.0,0.00032]
[1771128647186,0.07116698,70386.0,70380.0,0.00032]
[1771128647383,0.00012979,70386.0,70380.0,0.00032]
[1771128648196,0.07116666,70386.0,70380.0,0.00032]
[1771128648515,0.07104061,70383.0,70380.0,0.00032]
[1771128649109,0.0710419,70381.0,70380.0,0.00032]
[1771128649305,0.0710419,70381.0,70370.0,0.67460561]
[1771128649306,0.07103887,70384.0,70370.0,0.33436561]
[1771128649504,0.07104471,70379.0,70370.0,0.40541787]
[1771128649735,0.07103887,70384.0,70370.0,0.33436561]
[1771128650126,0.07104421,70379.0,70370.0,0.40541837]
[1771128650639,0.07103887,70384.0,70370.0,0.33436561]
[1771128650841,0.07103904,70384.0,70375.0,0.07104712]
[1771128651167,0.07103996,70383.0,70374.0,0.0710481]
[1771128651613,0.00012979,70386.0,70374.0,0.0710481]
[1771128651812,0.07104118,70382.0,70374.0,0.0710481]
[1771128653369,0.28415321,70385.0,70373.0,0.33364541]
[1771128653579,0.00012979,70386.0,70373.0,0.33364541]
[1771128653726,0.07104061,70383.0,70373.0,0.33364541]
[1771128653922,0.07104262,70381.0,70373.0,0.33364541]
[1771128654577,0.0710429,70380.0,70373.0,0.33364541]
[1771128655004,0.07103959,70384.0,70373.0,0.33364541]
[1771128655282,0.00012,70400.0,70380.0,0.00012]
[1771128655482,0.00012,70400.0,70390.0,0.33364541]
[1771128655656,0.5492959,70399.0,70383.0,0.07103937]
[1771128655898,0.5492959,70399.0,70381.0,0.34028]
[1771128655899,0.07103113,70392.0,70382.0,0.0710389]
[1771128656072,0.07103113,70392.0,70383.0,0.07103988]
[1771128656246,0.07103181,70391.0,70382.0,0.0710389]
[1771128656638,0.07103378,70390.0,70381.0,0.34028]
[1771128656889,0.07103378,70390.0,70382.0,0.0710401]
[1771128657037,0.07103181,70391.0,70383.0,0.07103976]
[1771128657238,0.07103101,70392.0,70383.0,0.07103988]
[1771128657434,0.0710339,70389.0,70382.0,0.0710401]
[1771128657675,0.07103497,70388.0,70382.0,0.34032]
[1771128657884,0.0710339,70389.0,70381.0,0.41136175]
[1771128658093,0.0710339,70389.0,70382.0,0.07104088]
[1771128658306,0.0710339,70389.0,70382.0,0.0710407]
[1771128658610,0.3942,70416.0,70381.0,0.34032]
[1771128658813,0.07102643,70397.0,70390.0,0.33364541]
[1771128658984,0.0710251,70398.0,70390.0,0.40467792]
[1771128659445,0.0710259,70397.0,70390.0,0.40467792]
[1771128659805,0.0710259,70397.0,70390.0,0.33364541]
[1771128660018,0.07102704,70396.0,70390.0,0.33364541]
[1771128660541,0.07102373,70399.0,70390.0,0.40467811]
[1771128660745,0.34028,70408.0,70393.0,0.28411739]
[1771128660945,0.07102145,70402.0,70398.0,0.33364541]
[1771128661153,0.34040992,70408.0,70390.0,0.00012]
[1771128661353,0.34040992,70408.0,70392.0,0.57315124]
[1771128661354,0.00012992,70408.0,70392.0,0.57315124]
[1771128661646,0.0004,70391.0,70390.0,0.33376541]
[1771128661818,0.28409461,70400.0,70390.0,0.34044]
[1771128661983,0.07102783,70395.0,70390.0,0.34044]
[1771128662188,0.07102704,70396.0,70390.0,0.34044]
[1771128663644,0.5492959,70400.0,70390.0,0.34044]
[1771128663846,0.00012,70410.0,70397.0,0.07102555]
[1771128664048,0.07102138,70402.0,70396.0,0.33364541]
[1771128664273,0.07102177,70401.0,70394.0,0.07102827]
[1771128664476,0.07102177,70401.0,70393.0,0.07102978]
[1771128664684,0.07102138,70402.0,70393.0,0.07102978]
[1771128664886,0.07102138,70402.0,70395.0,0.0710275]
[1771128665092,0.07102138,70402.0,70394.0,0.07102841]
[1771128665698,0.07101909,70404.0,70390.0,0.95821514]
[1771128665699,0.5492959,70404.0,70390.0,0.67408541]
[1771128666026,0.07102366,70400.0,70391.0,0.41131095]
[1771128666223,0.07102366,70400.0,70392.0,0.07103014]
[1771128666575,0.62031792,70401.0,70390.0,0.40479807]
[1771128666771,0.07102272,70400.0,70391.0,0.07103091]
[1771128667003,0.07102415,70399.0,70391.0,0.07103103]
[1771128667470,0.07102415,70399.0,70392.0,0.07103057]
[1771128667687,0.07102296,70400.0,70393.0,0.07102941]
[1771128667893,0.07102443,70399.0,70391.0,0.07103147]
[1771128668096,0.07102443,70399.0,70392.0,0.07103025]
[1771128668351,0.07102279,70400.0,70392.0,0.07103025]
[1771128668722,0.0710234,70400.0,70392.0,0.07103053]
[1771128668926,0.07102484,70398.0,70390.0,0.33376541]
[1771128669133,0.07102718,70396.0,70390.0,0.00012]
[1771128669564,0.07102603,70397.0,70390.0,0.00012]
[1771128669955,0.07102272,70400.0,70380.0,0.00012]
[1771128670112,0.07103588,70387.0,70380.0,0.07116289]
[1771128670303,0.07103693,70386.0,70380.0,0.33376541]
[1771128670649,0.07103714,70386.0,70380.0,0.33376541]
[1771128671172,0.02252363,70387.0,70372.0,0.0002]
[1771128671374,0.07104411,70379.0,70372.0,0.0002]
[1771128671620,0.07104411,70379.0,70372.0,0.00063366]
[1771128671741,0.07104467,70379.0,70372.0,0.00063366]
[1771128671939,0.07104441,70379.0,70372.0,0.00063366]
[1771128672195,0.07104519,70378.0,70372.0,0.00063366]
[1771128672336,0.0710442,70379.0,70372.0,0.00063366]
[1771128672761,0.07104501,70378.0,70372.0,0.00063366]
[1771128673148,0.54674195,70387.0,70365.0,0.0002]
[1771128673398,0.07105226,70371.0,70365.0,0.0002]
[1771128673705,0.07105507,70368.0,70365.0,0.0002]
[1771128673998,0.57077958,70373.0,70365.0,0.0002]
[1771128674197,0.07105283,70371.0,70365.0,0.0002]
[1771128674353,0.54674195,70372.0,70365.0,0.0002]
[1771128674553,0.07105468,70369.0,70365.0,0.0002]
[1771128674899,0.0710552,70368.0,70365.0,0.0002]
[1771128675138,0.07105603,70367.0,70365.0,0.0002]
[1771128675469,0.0710552,70368.0,70365.0,0.0002]
[1771128675805,0.85498268,70373.0,70365.0,0.0002]
[1771128676023,0.07105704,70366.0,70365.0,0.0002]
[1771128676218,0.28421365,70370.0,70364.0,0.0002]
[1771128676424,0.07105681,70367.0,70360.0,0.00012]
[1771128676719,0.57077958,70369.0,70360.0,0.00012]
[1771128677133,0.07105701,70368.0,70360.0,0.07118296]
[1771128677333,0.07105589,70368.0,70360.0,0.00012]
[1771128677536,0.57077958,70369.0,70360.0,0.00012]
[1771128677833,0.09509165,70369.0,70360.0,0.00012]
[1771128677991,0.02403763,70369.0,70360.0,0.00012]
[1771128678192,0.07105372,70370.0,70361.0,0.07106209]
[1771128678396,0.28418034,70378.0,70360.0,0.00012]
[1771128678397,0.54674195,70379.0,70360.0,0.00012]
[1771128678640,0.071053,70370.0,70362.0,0.07106025]
[1771128678945,0.071053,70370.0,70361.0,0.07106008]
[1771128679125,0.071053,70370.0,70362.0,0.07106076]
[1771128680495,0.62454375,70378.0,70360.0,0.33376541]
[1771128680696,0.07105703,70367.0,70360.0,0.33376541]
[1771128680895,0.07105525,70368.0,70360.0,0.33376541]
[1771128681301,0.07105708,70366.0,70360.0,0.33376541]
[1771128681505,0.07105614,70367.0,70360.0,0.00012]
[1771128682051,0.57077958,70372.0,70360.0,0.00012]
[1771128682260,0.07105128,70372.0,70364.0,0.07105891]
[1771128682457,0.07105027,70373.0,70361.0,0.07106209]
[1771128682653,0.07105027,70373.0,70363.0,0.07105925]
[1771128682808,0.07105274,70371.0,70363.0,0.07105925]
[1771128683211,0.07105295,70372.0,70362.0,0.0710609]
[1771128683416,0.07105199,70371.0,70363.0,0.07105983]
[1771128683865,0.07104997,70373.0,70360.0,0.00012]
[1771128684066,0.07105536,70368.0,70360.0,0.00012]
[1771128684429,0.54674195,70376.0,70360.0,0.00012]
[1771128684671,0.57077958,70370.0,70360.0,0.00012]
[1771128684820,0.0710584,70365.0,70360.0,0.00012]
[1771128685967,0.07149144,70365.0,70360.0,0.00012]
[1771128686126,0.0710591,70364.0,70360.0,0.00012]
[1771128686530,0.07104796,70375.0,70360.0,0.00012]
[1771128686739,0.07105147,70372.0,70364.0,0.07105871]
[1771128687165,0.07105211,70371.0,70363.0,0.0710581]
[1771128687409,0.3404,70375.0,70360.0,0.3338952]
[1771128687607,0.07105793,70367.0,70360.0,0.3338952]
[1771128687765,0.54674195,70371.0,70360.0,0.00024979]
[1771128687966,0.3404,70375.0,70360.0,0.3338952]
[1771128688166,0.3404,70375.0,70368.0,0.07105447]
[1771128688378,0.3404,70375.0,70369.0,0.07105367]
[1771128688583,0.3404,70375.0,70368.0,0.07105447]
[1771128688779,0.41144805,70375.0,70368.0,0.07105447]
[1771128688950,0.07105202,70371.0,70360.0,0.64130281]
[1771128689146,0.07105202,70371.0,70363.0,0.07105928]
[1771128689464,0.28420211,70373.0,70360.0,0.35705174]
[1771128689649,0.3404,70375.0,70360.0,0.00024979]
[1771128689848,0.07105998,70364.0,70360.0,0.00024979]
[1771128690190,0.54674195,70367.0,70360.0,0.00024979]
[1771128690364,0.43136,70384.0,70360.0,0.02340633]
[1771128690554,0.43136,70384.0,70360.0,0.02360633]
[1771128690555,0.54674195,70378.0,70360.0,0.02360633]
[1771128690796,0.54674195,70378.0,70362.0,0.07106044]
[1771128691025,0.0004,70371.0,70364.0,0.07105852]
[1771128691488,0.0004,70371.0,70363.0,0.07105975]
[1771128692010,0.07105327,70370.0,70362.0,0.07106084]
[1771128692575,0.071454,70371.0,70360.0,0.09466874]
[1771128692576,0.0004,70371.0,70360.0,0.09466842]
[1771128692791,0.0004,70371.0,70365.0,0.07105775]
[1771128693173,0.07105815,70365.0,70360.0,0.00044979]
[1771128693406,0.07105631,70367.0,70360.0,0.00044979]
[1771128693859,0.07105695,70368.0,70360.0,0.00044979]
[1771128693860,0.07105713,70366.0,70360.0,0.00044979]
[1771128694265,0.07105617,70367.0,70360.0,0.00044979]
[1771128694428,0.07105617,70367.0,70360.0,0.07151277]
[1771128694620,0.0004,70371.0,70362.0,0.07106108]
[1771128694811,0.07105315,70370.0,70362.0,0.07106108]
[1771128695914,0.07105471,70369.0,70361.0,0.07106134]
[1771128696116,0.07105471,70369.0,70362.0,0.07106102]
[1771128696312,0.07105471,70369.0,70360.0,0.3340952]
[1771128696313,0.54714195,70371.0,70360.0,0.40515756]
[1771128696561,0.07105498,70369.0,70361.0,0.07106193]
[1771128696767,0.07105569,70368.0,70360.0,0.40515756]
[1771128696926,0.07105428,70369.0,70362.0,0.07106088]
[1771128697329,0.07105579,70368.0,70361.0,0.07106183]
[1771128697564,0.07105413,70369.0,70361.0,0.07106168]
[1771128697744,0.54674195,70369.0,70354.0,0.0005815]
[1771128697945,0.61780376,70362.0,70354.0,0.07208343]
[1771128698150,0.071063,70361.0,70354.0,0.00101454]
[1771128698450,0.07106312,70360.0,70354.0,0.00101454]
[1771128698665,0.07094312,70360.0,70354.0,0.00101454]
[1771128699849,0.54674195,70363.0,70351.0,0.07107191]
[1771128700050,0.07106408,70360.0,70350.0,0.33434027]
[1771128700249,0.07106408,70360.0,70351.0,0.07107025]
[1771128700529,0.61823599,70363.0,70355.0,0.07106801]
[1771128701061,0.07106147,70362.0,70355.0,0.07106801]
[1771128701303,0.61823615,70363.0,70352.0,0.0002]
[1771128701504,0.56974015,70363.0,70352.0,0.0002]
[1771128701842,0.0710647,70359.0,70352.0,0.0002]
[1771128701995,0.0710647,70359.0,70352.0,0.07127062]
[1771128702403,0.07106439,70359.0,70352.0,0.07127108]
[1771128702606,0.54467332,70359.0,70353.0,0.0710701]
[1771128702806,0.61573761,70359.0,70352.0,0.07127087]
[1771128702999,0.07106429,70359.0,70352.0,0.07127087]
[1771128703206,0.284675,70363.0,70352.0,0.0002]
[1771128703455,0.07106682,70357.0,70352.0,0.0002]
[1771128703756,0.07106741,70356.0,70352.0,0.0002]
[1771128704768,0.07106902,70355.0,70352.0,0.0002]
[1771128704917,0.58219153,70359.0,70343.0,0.07108027]
[1771128705118,0.07107263,70351.0,70344.0,0.07107922]
[1771128705310,0.07107263,70351.0,70343.0,0.07108027]
[1771128705503,0.07107219,70351.0,70343.0,0.07108027]
[1771128705745,0.07107287,70351.0,70343.0,0.07108027]
[1771128706185,0.07107326,70350.0,70341.0,0.07108158]
[1771128706370,0.07107406,70351.0,70343.0,0.0710796]
[1771128706970,0.07107334,70350.0,70343.0,0.0710796]
[1771128707376,0.07107334,70350.0,70343.0,0.0712796]
[1771128707882,0.07106922,70354.0,70347.0,0.07107618]
[1771128708042,0.58259153,70379.0,70354.0,0.024399]
[1771128708382,0.07105043,70373.0,70363.0,0.07106007]
[1771128708584,0.07105153,70372.0,70365.0,0.07105742]
[1771128708935,0.07105043,70373.0,70366.0,0.07105681]
[1771128709651,0.07105106,70372.0,70364.0,0.07105906]
[1771128709853,0.07104958,70374.0,70365.0,0.07105718]
[1771128709854,0.07105003,70373.0,70365.0,0.07105718]
[1771128710070,0.0004,70378.0,70364.0,0.024399]
[1771128710272,0.0004,70378.0,70371.0,0.07105113]
[1771128710475,0.0004,70378.0,70361.0,0.07106209]
[1771128710677,0.07105006,70373.0,70365.0,0.07105724]
[1771128710917,0.58219153,70377.0,70361.0,0.07106209]
[1771128711060,0.58219153,70377.0,70361.0,0.30864731]
[1771128711256,0.58219153,70377.0,70371.0,0.0710513]
[1771128711670,0.58219153,70377.0,70369.0,0.07105342]
[1771128711877,0.0004,70378.0,70371.0,0.07105188]
[1771128712138,0.07103586,70387.0,70376.0,0.07104599]
[1771128712259,0.07103586,70387.0,70371.0,0.23588499]
[1771128712480,0.58231153,70390.0,70333.0,0.071734]
[1771128712481,0.02409653,70374.0,70363.0,4.5e-05]
[1771128712659,0.58219153,70371.0,70363.0,4.5e-05]
[1771128712911,0.071053,70370.0,70362.0,4.5e-05]
[1771128713132,0.60628806,70371.0,70362.0,4.5e-05]
[1771128713291,0.67734021,70371.0,70362.0,0.07123523]
[1771128713490,0.02409653,70370.0,70362.0,0.00017512]
[1771128713657,0.07105794,70366.0,70362.0,0.00017512]
[1771128714063,0.60628806,70365.0,70360.0,0.00012]
[1771128714265,0.00012982,70365.0,70360.0,0.00012]
[1771128714506,0.00012982,70365.0,70363.0,0.07106003]
[1771128714686,0.07105217,70371.0,70360.0,0.024519]
[1771128714886,0.07105217,70371.0,70361.0,0.07106111]
[1771128715091,0.07105326,70370.0,70361.0,0.07106111]
[1771128715745,0.07145326,70370.0,70361.0,0.07106111]
[1771128716446,0.07145313,70370.0,70362.0,0.07106108]
[1771128716694,0.07105427,70369.0,70361.0,0.07106111]